bitfinex-derivatives/quotes_BNBF0:USTF0_20250608
["timestamp","ask_amount","ask_price","bid_price","bid_amount"]
[1749349524725,1.16102073,649.49,648.71,0.399]
[1749349524925,1.16102073,649.48,648.71,0.399]
[1749349525225,1.16102073,649.47,648.71,0.399]
[1749349525425,1.16102073,649.46,648.71,0.399]
[1749349525622,1.16102073,649.45,648.71,0.399]
[1749349525826,0.26800257,649.53,648.71,0.399]
[1749349526027,1.1609938,649.52,648.71,0.399]
[1749349526224,1.1609938,649.51,648.71,0.399]
[1749349526424,1.1609938,649.5,648.71,0.399]
[1749349526621,1.1609938,649.49,648.71,0.399]
[1749349526825,1.1609938,649.48,648.71,0.399]
[1749349527025,1.1609938,649.47,648.71,0.399]
[1749349527227,1.1609938,649.46,648.71,0.399]
[1749349527427,1.1609938,649.45,648.71,0.399]
[1749349527627,0.26800257,649.53,648.71,0.399]
[1749349527822,1.16088314,649.52,648.71,0.399]
[1749349528026,1.16088314,649.51,648.71,0.399]
[1749349528227,1.16088314,649.5,648.71,0.399]
[1749349528427,1.16088314,649.49,648.71,0.399]
[1749349528627,1.16088314,649.48,648.71,0.399]
[1749349528828,1.16088314,649.47,648.71,0.399]
[1749349529022,1.16088314,649.46,648.71,0.399]
[1749349529224,1.16088314,649.45,648.71,0.399]
[1749349529527,0.26800257,649.53,648.71,0.399]
[1749349529825,1.1608819,649.52,648.71,0.399]
[1749349530029,1.1608819,649.51,648.71,0.399]
[1749349530225,1.1608819,649.5,648.71,0.399]
[1749349530526,1.1608819,649.49,648.71,0.399]
[1749349530725,1.1608819,649.48,648.71,0.399]
[1749349530925,1.1608819,649.47,648.71,0.399]
[1749349531129,1.1608819,649.46,648.71,0.399]
[1749349531327,0.26800257,649.53,648.71,0.399]
[1749349531629,1.16046194,649.52,648.71,0.399]
[1749349531829,1.16046194,649.51,648.71,0.399]
[1749349532026,0.26800257,649.53,648.71,0.399]
[1749349532027,1.16046194,649.5,648.71,0.399]
[1749349532225,1.16046194,649.49,648.71,0.399]
[1749349532427,1.16046194,649.48,648.71,0.399]
[1749349532626,1.16046194,649.47,648.71,0.399]
[1749349532831,1.16046194,649.46,648.71,0.399]
[1749349533030,0.26800257,649.53,648.71,0.399]
[1749349533229,1.16064841,649.52,648.71,0.399]
[1749349533434,1.16064841,649.51,648.71,0.399]
[1749349533629,1.16064841,649.5,648.71,0.399]
[1749349533833,1.16064841,649.49,648.71,0.399]
[1749349534129,1.16064841,649.48,648.71,0.399]
[1749349534332,1.16064841,649.47,648.71,0.399]
[1749349534528,1.16064841,649.46,648.71,0.399]
[1749349534734,0.26800257,649.53,648.71,0.399]
[1749349534938,1.16065916,649.52,648.71,0.399]
[1749349535134,1.16065916,649.51,648.71,0.399]
[1749349535330,1.16065916,649.5,648.71,0.399]
[1749349535634,1.16065916,649.49,648.71,0.399]
[1749349535836,1.16065916,649.48,648.71,0.399]
[1749349536131,1.16065916,649.47,648.71,0.399]
[1749349536431,1.16065916,649.46,648.71,0.399]
[1749349536636,0.26800257,649.53,648.71,0.399]
[1749349536836,1.16043154,649.52,648.71,0.399]
[1749349537036,1.16043154,649.51,648.71,0.399]
[1749349537332,1.16043154,649.5,648.71,0.399]
[1749349537535,0.26800257,649.53,648.71,0.399]
[1749349537536,1.16043154,649.49,648.71,0.399]
[1749349537835,1.16043154,649.48,648.71,0.399]
[1749349538031,1.16043154,649.47,648.71,0.399]
[1749349538234,1.16043154,649.46,648.71,0.399]
[1749349538432,0.26800257,649.53,648.71,0.399]
[1749349538636,1.16042834,649.52,648.71,0.399]
[1749349538833,1.16042834,649.51,648.71,0.399]
[1749349539136,1.16042834,649.5,648.71,0.399]
[1749349539335,1.16042834,649.49,648.71,0.399]
[1749349539534,1.16042834,649.48,648.71,0.399]
[1749349539733,1.16042834,649.47,648.71,0.399]
[1749349539933,1.16042834,649.46,648.71,0.399]
[1749349540133,0.26800257,649.53,648.71,0.399]
[1749349540337,1.16039554,649.52,648.71,0.399]
[1749349540533,1.16039554,649.51,648.71,0.399]
[1749349540733,1.16039554,649.5,648.71,0.399]
[1749349540932,1.16039554,649.49,648.71,0.399]
[1749349541137,1.16039554,649.48,648.71,0.399]
[1749349541436,1.16039554,649.47,648.71,0.399]
[1749349541633,1.16039554,649.46,648.71,0.399]
[1749349541837,1.16039554,649.45,648.71,0.399]
[1749349542037,0.26800257,649.53,648.71,0.399]
[1749349542337,1.16050167,649.52,648.71,0.399]
[1749349542533,1.16050167,649.51,648.71,0.399]
[1749349542736,1.16050167,649.5,648.72,0.948]
[1749349543034,1.16050167,649.49,648.72,0.948]
[1749349543235,0.26800257,649.53,648.72,0.948]
[1749349543236,1.16050167,649.48,648.72,0.948]
[1749349543438,1.16050167,649.47,648.72,0.948]
[1749349543637,1.16050167,649.46,648.72,0.948]
[1749349543832,1.16050167,649.45,648.72,0.948]
[1749349544034,0.26800257,649.53,648.72,0.948]
[1749349544233,1.16049909,649.52,648.72,0.948]
[1749349544439,1.16049909,649.51,648.72,0.948]
[1749349544638,1.16049909,649.5,648.72,0.948]
[1749349544939,1.16049909,649.49,648.72,0.948]
[1749349545235,1.16049909,649.48,648.72,0.948]
[1749349545435,1.16049909,649.47,648.72,0.948]
[1749349545635,1.16049909,649.46,648.72,0.948]
[1749349545835,1.16049909,649.45,648.72,0.948]
[1749349546034,0.26800257,649.53,648.72,0.948]
[1749349546239,1.16051282,649.52,648.72,0.948]
[1749349546439,1.16051282,649.51,648.72,0.948]
[1749349546636,1.16051282,649.5,648.72,0.948]
[1749349546835,1.16051282,649.49,648.72,0.948]
[1749349547039,1.16051282,649.48,648.72,0.948]
[1749349547238,1.16051282,649.47,648.72,0.948]
[1749349547436,0.26800257,649.53,648.74,3.84274728]
[1749349547640,1.16050274,649.52,648.74,3.84274728]
[1749349547942,1.16050274,649.51,648.74,3.84274728]
[1749349548238,1.16050274,649.5,648.74,3.84274728]
[1749349548441,0.26800257,649.53,648.74,3.84274728]
[1749349548741,1.16049916,649.52,648.72,4.79074728]
[1749349548939,1.16049916,649.51,648.72,4.79074728]
[1749349549237,1.16049916,649.5,648.72,4.79074728]
[1749349549540,1.16049916,649.49,648.72,0.948]
[1749349549737,0.26800257,649.53,648.72,0.948]
[1749349549941,1.16044085,649.52,648.72,0.948]
[1749349550139,1.16044085,649.51,648.72,4.79074728]
[1749349550440,1.16044085,649.5,648.72,4.79074728]
[1749349550639,1.16044085,649.49,648.72,4.79074728]
[1749349550842,0.26800257,649.53,648.72,4.79074728]
[1749349551037,1.16037259,649.52,648.72,4.79074728]
[1749349551340,1.16037259,649.51,648.72,4.79074728]
[1749349551538,1.16037259,649.5,648.72,4.79074728]
[1749349551737,1.16037259,649.49,648.72,4.79074728]
[1749349551941,0.26800257,649.53,648.72,4.79074728]
[1749349552141,1.16030285,649.52,648.72,4.79074728]
[1749349552342,1.16030285,649.51,648.72,4.79074728]
[1749349552541,1.16030285,649.5,648.72,4.79074728]
[1749349552839,1.16030285,649.49,648.72,4.79074728]
[1749349553040,0.26800257,649.53,648.72,4.79074728]
[1749349553244,1.1602815,649.52,648.72,4.79074728]
[1749349553446,1.1602815,649.51,648.72,4.79074728]
[1749349553645,1.1602815,649.5,648.73,0.399]
[1749349553845,1.1602815,649.49,648.73,0.399]
[1749349554144,0.26800257,649.53,648.73,0.399]
[1749349554345,1.16026098,649.52,648.73,0.399]
[1749349554645,1.16026098,649.51,648.73,0.399]
[1749349554840,1.16026098,649.5,648.73,0.399]
[1749349555037,1.16026098,649.49,648.73,0.399]
[1749349555245,1.16026098,649.48,648.73,0.399]
[1749349555539,1.16026098,649.47,648.73,0.399]
[1749349555741,0.26800257,649.53,648.73,0.399]
[1749349555943,1.1601585,649.52,648.73,0.399]
[1749349556141,1.1601585,649.51,648.73,0.399]
[1749349556347,1.1601585,649.5,648.73,0.399]
[1749349556549,1.1601585,649.49,648.73,0.399]
[1749349556747,1.1601585,649.48,648.73,0.399]
[1749349556948,1.1601585,649.47,648.73,0.399]
[1749349557248,0.26800257,649.53,648.73,0.399]
[1749349557447,1.15940923,649.52,648.73,0.399]
[1749349557644,1.15940923,649.51,648.73,0.399]
[1749349557849,1.15940923,649.5,648.73,0.399]
[1749349558049,0.26800257,649.53,648.73,0.399]
[1749349558050,1.15940923,649.49,648.73,0.399]
[1749349558251,1.15940923,649.48,648.73,0.399]
[1749349558453,1.15940923,649.47,648.73,0.399]
[1749349558748,1.15940923,649.46,648.73,0.399]
[1749349558952,1.15940923,649.45,648.73,0.399]
[1749349559254,1.15940923,649.44,648.73,0.399]
[1749349559453,1.15940923,649.43,648.73,0.399]
[1749349559750,1.15940923,649.42,648.73,0.399]
[1749349559950,1.15940923,649.41,648.73,0.399]
[1749349560252,1.15940923,649.4,648.73,0.399]
[1749349560551,0.26800257,649.53,648.73,0.399]
[1749349560753,1.15929753,649.52,648.73,0.399]
[1749349561054,1.15929753,649.51,648.73,0.399]
[1749349561350,1.15929753,649.5,648.73,0.399]
[1749349561547,1.15929753,649.49,648.73,0.399]
[1749349561748,1.15929753,649.48,648.73,0.399]
[1749349561949,1.15929753,649.47,648.73,0.399]
[1749349562153,1.15929753,649.46,648.73,0.399]
[1749349562448,1.15929753,649.45,648.73,0.399]
[1749349562651,1.15929753,649.44,648.73,0.399]
[1749349562954,1.15929753,649.43,648.73,0.399]
[1749349563148,1.15929753,649.42,648.73,0.399]
[1749349563352,1.15929753,649.41,648.73,0.399]
[1749349563649,2.05829753,649.4,648.73,0.399]
[1749349563852,0.899,649.4,648.73,0.399]
[1749349564653,0.899,649.4,648.74,0.825]
[1749349581469,0.899,649.4,648.75,0.399]
[1749349598682,0.899,649.4,648.76,1.03]
[1749349601692,0.26800257,649.53,648.76,1.03]
[1749349601885,1.15894964,649.52,648.76,1.03]
[1749349602184,1.15894964,649.51,648.76,1.03]
[1749349602387,1.15894964,649.5,648.76,1.03]
[1749349602587,1.15894964,649.49,648.76,1.03]
[1749349602790,1.15894964,649.48,648.76,1.03]
[1749349602988,1.15894964,649.47,648.76,1.03]
[1749349603187,1.15894964,649.46,648.76,1.03]
[1749349603391,1.15894964,649.45,648.76,1.03]
[1749349603691,1.15894964,649.44,648.76,1.03]
[1749349603891,0.26800257,649.53,648.76,1.03]
[1749349603892,1.15894964,649.43,648.76,1.03]
[1749349604092,0.26800257,649.53,648.76,1.03]
[1749349604290,1.15900899,649.52,648.76,1.03]
[1749349604490,1.15900899,649.51,648.76,1.03]
[1749349604792,1.15900899,649.5,648.76,1.03]
[1749349604986,1.15900899,649.49,648.76,1.03]
[1749349605186,1.15900899,649.48,648.76,1.03]
[1749349605387,1.15900899,649.47,648.76,1.03]
[1749349605592,1.15900899,649.46,648.76,1.03]
[1749349605791,1.15900899,649.45,648.76,1.03]
[1749349606088,1.15900899,649.44,648.76,1.03]
[1749349606387,1.15900899,649.43,648.76,1.03]
[1749349606588,0.666,649.48,648.76,1.03]
[1749349606791,1.15935117,649.47,648.76,1.03]
[1749349606991,1.15935117,649.46,648.76,1.03]
[1749349607191,1.15935117,649.45,648.76,1.03]
[1749349607495,1.15935117,649.44,648.76,1.03]
[1749349607790,1.15935117,649.43,648.76,1.03]
[1749349607989,1.15935117,649.42,648.76,1.03]
[1749349608189,1.15935117,649.41,648.76,1.03]
[1749349608389,0.666,649.48,648.76,1.03]
[1749349608688,1.15940899,649.47,648.76,1.03]
[1749349608892,1.15940899,649.46,648.76,1.03]
[1749349609090,1.15940899,649.45,648.76,1.03]
[1749349609290,1.15940899,649.44,648.76,1.03]
[1749349609492,1.15940899,649.43,648.76,1.03]
[1749349609791,1.15940899,649.42,648.76,1.03]
[1749349609990,1.15940899,649.41,648.76,1.03]
[1749349610192,0.666,649.48,648.76,1.03]
[1749349610390,1.15944584,649.47,648.76,1.03]
[1749349610590,1.15944584,649.46,648.76,1.03]
[1749349610789,1.15944584,649.45,648.76,1.03]
[1749349610994,1.15944584,649.44,648.76,1.03]
[1749349611193,1.15944584,649.43,648.76,1.03]
[1749349611394,1.15944584,649.42,648.76,1.03]
[1749349611594,1.15944584,649.41,648.76,1.03]
[1749349611796,0.666,649.48,648.76,1.03]
[1749349611998,1.15938692,649.47,648.76,1.03]
[1749349612197,1.15938692,649.46,648.76,1.03]
[1749349612396,1.15938692,649.45,648.77,0.399]
[1749349612598,1.15938692,649.44,648.77,0.399]
[1749349612896,1.15938692,649.43,648.77,0.399]
[1749349613196,1.15938692,649.42,648.77,0.399]
[1749349613395,1.15938692,649.41,648.77,0.399]
[1749349613701,0.666,649.48,648.77,0.399]
[1749349613898,1.15943512,649.47,648.77,0.399]
[1749349614098,1.15943512,649.46,648.77,0.399]
[1749349614298,1.15943512,649.45,648.77,0.399]
[1749349614598,1.15943512,649.44,648.77,0.399]
[1749349614898,1.15943512,649.43,648.77,0.399]
[1749349615201,1.15943512,649.42,648.77,0.399]
[1749349615397,1.15943512,649.41,648.77,0.399]
[1749349615702,1.15948853,649.4,648.77,0.399]
[1749349616002,0.666,649.48,648.77,0.399]
[1749349616199,1.15949197,649.47,648.77,0.399]
[1749349616397,1.15949197,649.46,648.77,0.399]
[1749349616597,1.15949197,649.45,648.77,0.399]
[1749349616798,1.15949197,649.44,648.77,0.399]
[1749349616999,1.15949197,649.43,648.77,0.399]
[1749349617199,1.15949197,649.42,648.77,0.399]
[1749349617403,1.15949197,649.41,648.77,0.399]
[1749349617704,0.666,649.48,648.77,0.399]
[1749349617901,1.15945767,649.47,648.77,0.399]
[1749349618102,1.15945767,649.46,648.77,0.399]
[1749349618302,1.15945767,649.45,648.77,0.399]
[1749349618602,1.15945767,649.44,648.77,0.399]
[1749349618802,0.666,649.48,648.77,0.399]
[1749349618803,1.15945767,649.43,648.77,0.399]
[1749349619000,1.15945767,649.42,648.77,0.399]
[1749349619202,1.15945767,649.41,648.77,0.399]
[1749349619406,1.15945767,649.4,648.77,0.399]
[1749349619602,0.666,649.48,648.77,0.399]
[1749349619809,1.15932102,649.47,648.77,0.399]
[1749349620003,1.15932102,649.46,648.77,0.399]
[1749349620207,1.15932102,649.45,648.77,0.399]
[1749349620507,1.15932102,649.44,648.77,0.399]
[1749349620706,1.15932102,649.43,648.77,0.399]
[1749349620906,1.15932102,649.42,648.77,0.399]
[1749349621109,1.15932102,649.41,648.77,0.399]
[1749349621405,1.15932102,649.4,648.77,0.399]
[1749349621610,0.666,649.48,648.77,0.399]
[1749349621905,1.15904552,649.47,648.77,0.399]
[1749349622106,1.15904552,649.46,648.77,0.399]
[1749349622310,1.15904552,649.45,648.77,0.399]
[1749349622510,1.15904552,649.44,648.77,0.399]
[1749349622710,0.666,649.48,648.77,0.399]
[1749349622711,1.15901104,649.43,648.77,0.399]
[1749349622908,1.15901104,649.42,648.77,0.399]
[1749349623110,1.15901104,649.41,648.77,0.399]
[1749349623313,1.15901104,649.4,648.77,0.399]
[1749349623513,1.15901104,649.39,648.77,0.399]
[1749349623812,1.15901104,649.38,648.77,0.399]
[1749349624012,1.15901104,649.37,648.77,0.399]
[1749349624212,1.15901104,649.36,648.77,0.399]
[1749349624413,1.15901104,649.35,648.77,0.399]
[1749349624614,1.15901104,649.34,648.77,0.399]
[1749349624810,1.15901104,649.33,648.77,0.399]
[1749349625011,1.15901104,649.32,648.77,0.399]
[1749349625210,1.15901104,649.31,648.77,0.399]
[1749349625411,1.15901104,649.3,648.77,0.399]
[1749349625715,0.666,649.48,648.77,0.399]
[1749349626011,1.15724049,649.47,648.77,0.399]
[1749349626212,1.15724049,649.46,648.77,0.399]
[1749349626415,1.15724049,649.45,648.77,0.399]
[1749349626711,0.666,649.48,648.77,0.399]
[1749349626712,1.15724049,649.44,648.77,0.399]
[1749349627012,1.15724049,649.43,648.77,0.399]
[1749349627215,0.666,649.48,648.77,0.399]
[1749349627216,1.15724049,649.42,648.77,0.399]
[1749349627417,1.15724049,649.41,648.77,0.399]
[1749349627712,1.15724049,649.4,648.77,0.399]
[1749349627911,1.15724049,649.39,648.77,0.399]
[1749349628110,0.666,649.48,648.77,0.399]
[1749349628111,1.15724049,649.38,648.77,0.399]
[1749349628312,1.15724049,649.37,648.77,0.399]
[1749349628516,1.15724049,649.36,648.77,0.399]
[1749349628716,1.15724049,649.35,648.77,0.399]
[1749349628916,1.15724049,649.34,648.78,0.65]
[1749349629116,1.15724049,649.33,648.78,0.65]
[1749349629413,1.15724049,649.32,648.78,0.65]
[1749349629613,1.15724049,649.31,648.78,0.65]
[1749349629813,1.15724049,649.3,648.78,0.65]
[1749349630017,0.666,649.48,648.78,0.65]
[1749349630218,1.15630176,649.47,648.78,0.65]
[1749349630412,1.15630176,649.46,648.78,0.65]
[1749349630613,1.15630176,649.45,648.78,0.65]
[1749349630817,1.15630176,649.44,648.78,0.65]
[1749349631016,1.15630176,649.43,648.78,0.65]
[1749349631218,1.15630176,649.42,648.78,0.65]
[1749349631518,1.15630176,649.41,648.78,0.65]
[1749349631714,1.15630176,649.4,648.78,0.65]
[1749349631920,1.15630176,649.39,648.78,0.65]
[1749349632215,1.15630176,649.38,648.78,0.65]
[1749349632420,1.15630176,649.37,648.78,0.65]
[1749349632616,1.15630176,649.36,648.78,0.65]
[1749349632819,1.15630176,649.35,648.78,0.65]
[1749349633018,1.15630176,649.34,648.78,0.65]
[1749349633218,0.666,649.48,648.78,0.65]
[1749349633219,1.15630176,649.33,648.78,0.65]
[1749349633519,1.15630176,649.32,648.78,0.65]
[1749349633719,0.666,649.48,648.78,0.65]
[1749349633919,1.1557596,649.47,648.78,0.65]
[1749349634115,1.1557596,649.46,648.78,0.65]
[1749349634316,1.1557596,649.45,648.78,0.65]
[1749349634519,1.1557596,649.44,648.78,0.65]
[1749349634817,1.1557596,649.43,648.78,0.65]
[1749349635015,1.1557596,649.42,648.78,0.65]
[1749349635214,1.1557596,649.41,648.78,0.65]
[1749349635416,1.1557596,649.4,648.78,0.65]
[1749349635617,1.1557596,649.39,648.78,0.65]
[1749349635819,1.1557596,649.38,648.78,0.65]
[1749349636014,0.666,649.48,648.78,0.65]
[1749349636015,1.1557596,649.37,648.78,0.65]
[1749349636215,1.1557596,649.36,648.78,0.65]
[1749349636415,1.1557596,649.35,648.78,0.65]
[1749349636719,1.1557596,649.34,648.78,0.65]
[1749349636919,1.1557596,649.33,648.78,0.65]
[1749349637118,0.666,649.48,648.78,0.65]
[1749349637322,1.15491177,649.47,648.78,0.65]
[1749349637622,1.15491177,649.46,648.78,0.65]
[1749349637822,1.15491177,649.45,648.78,0.65]
[1749349638022,1.15491177,649.44,648.78,0.65]
[1749349638320,1.15491177,649.43,648.78,0.65]
[1749349638617,1.15491177,649.42,648.78,0.65]
[1749349638817,1.15491177,649.41,648.78,0.65]
[1749349639023,1.15491177,649.4,648.78,0.65]
[1749349639222,1.15491177,649.39,648.78,0.65]
[1749349639422,0.666,649.48,648.78,0.65]
[1749349639623,1.15466624,649.47,648.78,0.65]
[1749349639918,1.15466624,649.46,648.78,0.65]
[1749349640122,1.15466624,649.45,648.78,0.65]
[1749349640321,1.15466624,649.44,648.78,0.65]
[1749349640523,1.15466624,649.43,648.78,0.65]
[1749349640723,1.15466624,649.42,648.78,0.65]
[1749349640924,1.15466624,649.41,648.78,0.65]
[1749349641223,1.15466624,649.4,648.78,0.65]
[1749349641521,1.15466624,649.39,648.78,0.65]
[1749349641820,0.666,649.48,648.78,0.65]
[1749349642024,1.15399233,649.47,648.78,0.65]
[1749349642219,1.15399233,649.46,648.78,0.65]
[1749349642421,1.15399233,649.45,648.78,0.65]
[1749349642620,1.15399233,649.44,648.78,0.65]
[1749349642820,1.15399233,649.43,648.78,0.65]
[1749349643022,1.15399233,649.42,648.78,0.65]
[1749349643323,1.15399233,649.41,648.78,0.65]
[1749349643522,1.15399233,649.4,648.78,0.65]
[1749349643721,1.15399233,649.39,648.78,0.65]
[1749349643926,0.666,649.48,648.78,0.65]
[1749349644226,1.15380757,649.47,648.78,0.65]
[1749349644426,1.15380757,649.46,648.78,0.65]
[1749349644621,1.15380757,649.45,648.78,0.65]
[1749349644826,1.15380757,649.44,648.79,0.399]
[1749349645025,1.15380757,649.43,648.79,0.399]
[1749349645221,1.15380757,649.42,648.79,0.399]
[1749349645425,1.15380757,649.41,648.79,0.399]
[1749349645624,1.15380757,649.4,648.79,0.399]
[1749349645824,0.666,649.48,648.79,0.399]
[1749349646024,1.15370892,649.47,648.79,0.399]
[1749349646223,0.666,649.48,648.79,0.399]
[1749349646224,1.15370892,649.46,648.79,0.399]
[1749349646523,1.15370892,649.45,648.79,0.399]
[1749349646824,0.666,649.48,648.79,0.399]
[1749349646825,1.15370892,649.44,648.79,0.399]
[1749349647024,1.15370892,649.43,648.79,0.399]
[1749349647224,1.15370892,649.42,648.79,0.399]
[1749349647528,1.15370892,649.41,648.79,0.399]
[1749349647729,1.15370892,649.4,648.79,0.399]
[1749349648027,1.15370892,649.39,648.79,0.399]
[1749349648226,1.15370892,649.38,648.79,0.399]
[1749349648529,1.15370892,649.37,648.79,0.399]
[1749349648726,1.15370892,649.36,648.79,0.399]
[1749349648926,1.15370892,649.35,648.79,0.399]
[1749349649126,0.666,649.48,648.79,0.399]
[1749349649428,1.15321793,649.47,648.79,0.399]
[1749349649629,1.15321793,649.46,648.79,0.399]
[1749349649829,1.15321793,649.45,648.79,0.399]
[1749349650027,1.15321793,649.44,648.79,0.399]
[1749349650229,1.15321793,649.43,648.79,0.399]
[1749349650429,1.15321793,649.42,648.79,0.399]
[1749349650631,1.15321793,649.41,648.79,0.399]
[1749349650831,1.15321793,649.4,648.79,0.399]
[1749349651032,1.15321793,649.39,648.79,0.399]
[1749349651232,1.15321793,649.38,648.79,0.399]
[1749349651429,1.15321793,649.37,648.79,0.399]
[1749349651629,1.15321793,649.36,648.79,0.399]
[1749349651829,1.15321793,649.35,648.79,0.399]
[1749349652033,0.666,649.48,648.79,0.399]
[1749349652329,1.15175997,649.47,648.79,0.399]
[1749349652533,1.15175997,649.46,648.79,0.399]
[1749349652732,1.15175997,649.45,648.79,0.399]
[1749349652934,1.15175997,649.44,648.79,0.399]
[1749349653135,1.15175997,649.43,648.79,0.399]
[1749349653336,1.15175997,649.42,648.79,0.399]
[1749349653532,1.15175997,649.41,648.79,0.399]
[1749349653731,1.15175997,649.4,648.79,0.399]
[1749349654036,1.15175997,649.39,648.79,0.399]
[1749349654334,1.15175997,649.38,648.8,0.648]
[1749349654537,1.15175997,649.37,648.8,0.648]
[1749349654732,1.15175997,649.36,648.8,0.648]
[1749349654936,1.15175997,649.35,648.8,0.648]
[1749349655136,0.26800257,649.53,648.8,0.648]
[1749349655433,1.15180751,649.52,648.8,0.648]
[1749349655636,1.15180751,649.51,648.8,0.648]
[1749349655934,1.15180751,649.5,648.8,0.648]
[1749349656237,1.15180751,649.49,648.8,0.648]
[1749349656440,1.15180751,649.48,648.8,0.648]
[1749349656638,1.15180751,649.47,648.8,0.648]
[1749349656841,1.15180751,649.46,648.8,0.648]
[1749349657040,1.15180751,649.45,648.8,0.648]
[1749349657236,1.15180751,649.44,648.8,0.648]
[1749349657536,0.651,649.47,648.8,0.648]
[1749349657537,1.15180751,649.43,648.8,0.648]
[1749349657741,1.15180751,649.42,648.8,0.648]
[1749349657940,1.15180751,649.41,648.8,0.648]
[1749349658134,1.15180751,649.4,648.8,0.648]
[1749349658338,1.15180751,649.39,648.8,0.648]
[1749349658542,1.15180751,649.38,648.8,0.648]
[1749349658740,0.651,649.47,648.8,0.648]
[1749349659041,1.15296832,649.46,648.8,0.648]
[1749349659336,1.15296832,649.45,648.8,0.648]
[1749349659540,1.15296832,649.44,648.8,0.648]
[1749349659738,1.15296832,649.43,648.8,0.648]
[1749349659940,1.15296832,649.42,648.8,0.648]
[1749349660138,1.15296832,649.41,648.8,0.648]
[1749349660340,1.15296832,649.4,648.8,0.648]
[1749349660539,1.15296832,649.39,648.8,0.648]
[1749349660840,1.15296832,649.38,648.8,0.648]
[1749349661038,1.15296832,649.37,648.8,0.648]
[1749349661238,0.651,649.47,648.8,0.648]
[1749349661442,1.15308396,649.46,648.8,0.648]
[1749349661637,1.15308396,649.45,648.8,0.648]
[1749349661936,1.15308396,649.44,648.8,0.648]
[1749349662241,0.651,649.47,648.8,0.648]
[1749349662242,1.15308396,649.43,648.8,0.648]
[1749349662537,1.15308396,649.42,648.8,0.648]
[1749349662736,1.15308396,649.41,648.8,0.648]
[1749349662941,1.15308396,649.4,648.8,0.648]
[1749349663138,1.15308396,649.39,648.8,0.648]
[1749349663336,1.15308396,649.38,648.8,0.648]
[1749349663543,1.15308396,649.37,648.8,0.648]
[1749349663742,0.651,649.47,648.8,0.648]
[1749349663937,1.15349619,649.46,648.8,0.648]
[1749349664240,1.15349619,649.45,648.8,0.648]
[1749349664540,1.15349619,649.44,648.8,0.648]
[1749349664744,1.15349619,649.43,648.8,0.648]
[1749349665043,1.15349619,649.42,648.8,0.648]
[1749349665242,1.15349619,649.41,648.8,0.648]
[1749349665438,1.15349619,649.4,648.8,0.648]
[1749349665640,0.651,649.47,648.8,0.648]
[1749349665641,1.15349619,649.39,648.8,0.648]
[1749349665840,1.15349619,649.38,648.8,0.648]
[1749349666041,0.651,649.47,648.8,0.648]
[1749349666042,1.15349619,649.37,648.8,0.648]
[1749349666239,0.651,649.47,648.8,0.648]
[1749349666440,1.15372986,649.46,648.8,0.648]
[1749349666744,1.15372986,649.45,648.8,0.648]
[1749349666942,1.15372986,649.44,648.8,0.648]
[1749349667145,1.15372986,649.43,648.8,0.648]
[1749349667444,1.15372986,649.42,648.8,0.648]
[1749349667641,1.15372986,649.41,648.8,0.648]
[1749349667846,1.15372986,649.4,648.8,0.648]
[1749349668143,1.15372986,649.39,648.8,0.648]
[1749349668342,1.15372986,649.38,648.8,0.648]
[1749349668546,1.15372986,649.37,648.8,0.648]
[1749349668844,1.15372986,649.36,648.8,0.648]